fUSD/lending_fUSD_20240616
["ID","MTS","AMOUNT","RATE_DAILY","PERIOD"]
[329682125,1718568726853,-1316.90997042,0.00027599,7]
[329682126,1718568726865,-1316.90997042,0.00027599,7]
[329682127,1718568726879,-1316.90997042,0.00027599,7]
[329682128,1718568726898,-1316.90997042,0.00027599,7]
[329682129,1718568726911,-1316.90997042,0.00027599,7]
[329682130,1718568726940,-1316.90997042,0.00027599,7]
[329682131,1718568726953,-1316.90997042,0.00027599,7]
[329682132,1718568726967,-1316.90997042,0.00027599,7]
[329682133,1718568726980,-1316.90997042,0.00027599,7]
[329682134,1718568727017,-1316.90997042,0.00027599,7]
[329682135,1718568727034,-1316.90997042,0.00027599,7]
[329682136,1718568727060,-1316.90997042,0.00027599,7]
[329682137,1718568727074,-1316.90997042,0.00027599,7]
[329682138,1718568727086,-1316.90997042,0.00027599,7]
[329682139,1718568727101,-1316.90997042,0.00027599,7]
[329682140,1718568727120,-1316.90997042,0.00027599,7]
[329682141,1718568727132,-1316.90997042,0.00027599,7]
[329682142,1718568727156,-1316.90997042,0.00027599,7]
[329682143,1718568727170,-1316.90997042,0.00027599,7]
[329682144,1718568727183,-691.21061872,0.00027599,2]
[329682145,1718568727201,-150.0,0.00027604,2]
[329682146,1718568727223,-150.0,0.00027604,2]
[329682147,1718568727236,-150.0,0.00027611,2]
[329682148,1718568727254,-150.0,0.00027616,2]
[329682149,1718568727266,-150.0,0.00027616,2]
[329682150,1718568727277,-150.0,0.00027616,2]
[329682151,1718568727290,-150.0,0.00027619,2]
[329682152,1718568727332,-150.0,0.00027622,2]
[329682153,1718568727361,-500.0,0.00027626,2]
[329682154,1718568727385,-10949.25310733,0.00027627,2]
[329682155,1718568727398,-150.0,0.00027627,2]
[329682156,1718568727420,-150.0,0.0002763,2]
[329682157,1718568727439,-150.0,0.00027638,2]
[329682158,1718568727483,-150.0,0.00027638,2]
[329682159,1718568727505,-150.0,0.00027643,2]
[329682160,1718568727526,-150.0,0.0002765,2]
[329682161,1718568727542,-2706.26596708,0.00027651,2]
[329682162,1718568727581,-150.0,0.00027652,2]
[329682163,1718568727602,-150.0,0.00027652,2]
[329682164,1718568727637,-150.0,0.00027666,2]
[329682165,1718568727649,-1099.79,0.00027669,8]
[329682166,1718568727661,-614.81,0.00027669,8]
[329682167,1718568727688,-875.8,0.00027669,8]
[329682168,1718568727710,-1143.09,0.00027669,8]
[329682169,1718568727744,-709.52,0.00027669,8]
[329682170,1718568727758,-2000.0,0.00027669,2]
[329682171,1718568727795,-603.17,0.00027669,8]
[329682172,1718568727807,-500.0,0.00027669,8]
[329682173,1718568727821,-504.0,0.00027669,8]
[329682174,1718568727835,-500.0,0.00027669,8]
[329682175,1718568727847,-722.11,0.00027669,8]
[329682176,1718568727865,-614.84,0.00027669,8]
[329682177,1718568727878,-3269.02,0.00027669,8]
[329682178,1718568727892,-500.0,0.00027669,8]
[329682179,1718568727908,-810.12,0.00027669,8]
[329682180,1718568727920,-500.0,0.00027669,8]
[329682181,1718568727950,-2763.05,0.00027669,8]
[329682182,1718568727964,-1047.89,0.00027669,8]
[329682183,1718568727976,-500.0,0.00027669,8]
[329682184,1718568727993,-607.92,0.00027669,8]
[329682185,1718568728029,-1372.29,0.00027669,8]
[329682186,1718568728045,-673.61,0.00027669,8]
[329682187,1718568728075,-883.94,0.00027669,8]
[329682188,1718568728103,-251.46705918,0.0002767,2]
[329682189,1718568728114,-10949.25310733,0.0002767,2]
[329682190,1718568728127,-184.78094521,0.0002767,2]
[329682191,1718568728138,-500.0,0.0002767,2]
[329682192,1718568728164,-50823.50471088,0.0002767,2]
[329682193,1718568728174,-316.61556882,0.0002767,2]
[329682194,1718568728202,-1208.0836391,0.0002767,2]
[329682195,1718568728213,-2966.17,0.0002767,7]
[329682196,1718568728226,-1317.4,0.0002767,7]
[329682197,1718568728237,-150.0,0.00027671,2]
[329682198,1718568728260,-150.0,0.00027671,2]
[329682199,1718568728271,-150.0,0.00027675,2]
[329682200,1718568728281,-150.0,0.00027677,2]
[329682201,1718568728295,-150.0,0.00027679,2]
[329682202,1718568728307,-150.0,0.00027689,2]
[329682203,1718568728318,-160.81,0.00027689,2]
[329682204,1718568728340,-204.13,0.00027689,2]
[329682205,1718568728354,-346.772,0.00027689,2]
[329682206,1718568728365,-666.06,0.00027699,8]
[329682207,1718568728388,-754.04,0.00027699,8]
[329682208,1718568728401,-648.08,0.00027699,8]
[329682209,1718568728417,-1042.32,0.00027699,8]
[329682210,1718568728442,-817.36,0.00027699,8]
[329682211,1718568728457,-579.26,0.00027699,8]
[329682212,1718568728470,-500.0,0.00027699,8]
[329682213,1718568728485,-519.42,0.00027699,8]
[329682214,1718568728516,-519.42,0.00027699,8]
[329682215,1718568728532,-519.42,0.00027699,8]
[329682216,1718568728547,-519.42,0.00027699,8]
[329682217,1718568728564,-519.65513119,0.00027699,8]
[329682218,1718568728576,-500.0,0.00027699,8]
[329682219,1718568728593,-1336.66,0.00027699,8]
[329682220,1718568728606,-1336.66,0.00027699,8]
[329682221,1718568728621,-1336.66,0.00027699,8]
[329682222,1718568728640,-1336.66,0.00027699,8]
[329682223,1718568728656,-1336.8769,0.00027699,8]
[329682224,1718568728675,-1612.04,0.00027699,8]
[329682225,1718568728697,-500.0,0.00027699,8]
[329682226,1718568728714,-330.42,0.00027699,8]
[329682227,1718568728736,-994.0,0.00027699,8]
[329682228,1718568728751,-994.0,0.00027699,8]
[329682229,1718568728774,-994.0,0.00027699,8]
[329682230,1718568728797,-994.0,0.00027699,8]
[329682231,1718568728810,-994.16,0.00027699,8]
[329682232,1718568728831,-748.95,0.00027699,8]
[329682233,1718568728845,-748.95,0.00027699,8]
[329682234,1718568728874,-748.95,0.00027699,8]
[329682235,1718568728920,-748.95,0.00027699,8]
[329682236,1718568728942,-749.08,0.00027699,8]
[329682237,1718568728959,-1038.13,0.00027699,8]
[329682238,1718568728972,-520.25,0.00027699,8]
[329682239,1718568728994,-520.25,0.00027699,8]
[329682240,1718568729019,-520.25,0.00027699,8]
[329682241,1718568729053,-520.25,0.00027699,8]
[329682242,1718568729065,-520.46369778,0.00027699,8]
[329682243,1718568729107,-506.13,0.00027699,8]
[329682244,1718568729138,-506.13,0.00027699,8]
[329682245,1718568729151,-506.13,0.00027699,8]
[329682246,1718568729168,-506.13,0.00027699,8]
[329682247,1718568729180,-506.17,0.00027699,8]
[329682248,1718568729193,-500.0,0.00027699,8]
[329682249,1718568729205,-500.0,0.00027699,8]
[329682250,1718568729225,-441.93293347,0.00027699,8]
[329682251,1718568729240,-936.28,0.00027699,8]
[329682252,1718568729279,-768.77,0.00027699,8]
[329682253,1718568729290,-768.77,0.00027699,8]
[329682254,1718568729311,-768.77,0.00027699,8]
[329682255,1718568729328,-768.77,0.00027699,8]
[329682256,1718568729342,-768.95,0.00027699,8]
[329682257,1718568729359,-989.31,0.00027699,8]
[329682258,1718568729372,-989.31,0.00027699,8]
[329682259,1718568729388,-989.31,0.00027699,8]
[329682260,1718568729410,-989.31,0.00027699,8]
[329682261,1718568729429,-989.34,0.00027699,8]
[329682262,1718568729441,-529.06,0.00027699,8]
[329682263,1718568729452,-500.0,0.00027699,8]
[329682264,1718568729463,-499.48,0.00027699,8]
[329682265,1718568729474,-1846.66,0.00027699,8]
[329682266,1718568729485,-1846.66,0.00027699,8]
[329682267,1718568729500,-1846.66,0.00027699,8]
[329682268,1718568729515,-1846.66,0.00027699,8]
[329682269,1718568729525,-1846.79,0.00027699,8]
[329682270,1718568729551,-648.71,0.00027699,8]
[329682271,1718568729563,-1018.04,0.00027699,8]
[329682272,1718568729578,-1018.04,0.00027699,8]
[329682273,1718568729632,-1018.04,0.00027699,8]
[329682274,1718568729651,-1018.04,0.00027699,8]
[329682275,1718568729665,-1018.19,0.00027699,8]
[329682276,1718568729677,-671.53,0.00027699,8]
[329682277,1718568729689,-671.53,0.00027699,8]
[329682278,1718568729701,-671.53,0.00027699,8]
[329682279,1718568729741,-671.53,0.00027699,8]
[329682280,1718568729752,-671.57,0.00027699,8]
[329682281,1718568729784,-960.71,0.00027699,8]
[329682282,1718568729801,-900.49,0.00027699,8]
[329682283,1718568729815,-933.85,0.00027699,8]
[329682284,1718568729828,-933.85,0.00027699,8]
[329682285,1718568729847,-933.85,0.00027699,8]
[329682286,1718568729875,-933.85,0.00027699,8]
[329682287,1718568729891,-933.99091783,0.00027699,8]
[329682288,1718568729931,-637.17,0.00027699,8]
[329682289,1718568729943,-604.47,0.00027699,8]
[329682290,1718568729957,-604.47,0.00027699,8]
[329682291,1718568729970,-604.47,0.00027699,8]
[329682292,1718568729982,-604.47,0.00027699,8]
[329682293,1718568730002,-604.55,0.00027699,8]
[329682294,1718568730017,-676.91,0.00027699,8]
[329682295,1718568730030,-676.91,0.00027699,8]
[329682296,1718568730044,-676.91,0.00027699,8]
[329682297,1718568730056,-676.91,0.00027699,8]
[329682298,1718568730081,-677.0249426,0.00027699,8]
[329682299,1718568730093,-864.55,0.00027699,8]
[329682300,1718568730107,-567.93,0.00027699,8]
[329682301,1718568730118,-567.93,0.00027699,8]
[329682302,1718568730129,-567.93,0.00027699,8]
[329682303,1718568730147,-567.93,0.00027699,8]
[329682304,1718568730169,-656.91,0.00027699,8]
[329682305,1718568730186,-568.08584851,0.00027699,8]
[329682306,1718568730203,-589.25,0.00027699,8]
[329682307,1718568730216,-2494.49,0.00027699,8]
[329682308,1718568730229,-2494.49,0.00027699,8]
[329682309,1718568730259,-2494.49,0.00027699,8]
[329682310,1718568730279,-2494.49,0.00027699,8]
[329682311,1718568730364,-2494.6,0.00027699,8]
[329682312,1718568730407,-741.87,0.00027699,8]
[329682313,1718568730430,-741.87,0.00027699,8]
[329682314,1718568730447,-741.87,0.00027699,8]
[329682315,1718568730461,-741.87,0.00027699,8]
[329682316,1718568730488,-742.07,0.00027699,8]
[329682317,1718568730510,-2000.0,0.000277,2]
[329682318,1718568730523,-160.0,0.000277,2]
[329682319,1718568730535,-47429.68485606,0.000277,2]
[329682320,1718568730558,-2500.0,0.000277,2]
[329682321,1718568730574,-489.0,0.000277,11]
[329682322,1718568730587,-290.0,0.000277,2]
[329682323,1718568730598,-2000.0,0.000277,2]
[329682324,1718568730628,-2000.0,0.000277,2]
[329682325,1718568730643,-2000.0,0.000277,2]
[329682326,1718568730661,-2000.0,0.000277,2]
[329682327,1718568730675,-2000.0,0.000277,2]
[329682328,1718568730687,-1250.0,0.000277,2]
[329682329,1718568730709,-352.063249,0.000277,2]
[329682330,1718568730745,-253.40645,0.000277,2]
[329682331,1718568730763,-413.565346,0.000277,2]
[329682332,1718568730774,-500.0,0.00027716,2]
[329682333,1718568730794,-47653.34376438,0.00027717,2]
[329682334,1718568730814,-151.0,0.00027717,7]
[329682335,1718568730829,-197.473045,0.00027717,7]
[329682336,1718568730849,-245.637398,0.00027717,3]
[329682337,1718568730881,-151.0,0.00027717,7]
[329682338,1718568730904,-1406.223328,0.00027717,7]
[329682339,1718568730920,-1406.223328,0.00027717,7]
[329682340,1718568730933,-170.03137,0.00027717,7]
[329682341,1718568730960,-170.03137,0.00027717,7]
[329682342,1718568730972,-151.0,0.00027717,7]
[329682343,1718568730985,-151.0,0.00027717,7]
[329682344,1718568730997,-166.467511,0.00027717,7]
[329682345,1718568731014,-166.467511,0.00027717,7]
[329682346,1718568731048,-150.0,0.0002772,2]
[329682347,1718568731059,-150.0,0.00027737,2]
[329682348,1718568731091,-150.0,0.00027737,2]
[329682349,1718568731103,-150.0,0.00027737,2]
[329682350,1718568731123,-150.0,0.00027738,2]
[329682351,1718568731145,-150.0,0.0002774,2]
[329682352,1718568731157,-150.0,0.00027741,2]
[329682353,1718568731168,-709.52,0.00027749,8]
[329682354,1718568731182,-504.0,0.00027749,8]
[329682355,1718568731193,-500.0,0.00027749,8]
[329682356,1718568731204,-722.11,0.00027749,8]
[329682357,1718568731214,-500.0,0.00027749,8]
[329682358,1718568731224,-810.12,0.00027749,8]
[329682359,1718568731234,-500.0,0.00027749,8]
[329682360,1718568731249,-1047.89,0.00027749,8]
[329682361,1718568731260,-607.92,0.00027749,8]
[329682362,1718568731274,-1372.29,0.00027749,8]
[329682363,1718568731286,-673.61,0.00027749,8]
[329682364,1718568731304,-883.94,0.00027749,8]
[329682365,1718568731316,-875.8,0.0002775,8]
[329682366,1718568731328,-666.06,0.0002775,8]
[329682367,1718568731341,-1143.09,0.0002775,8]
[329682368,1718568731354,-754.04,0.0002775,8]
[329682369,1718568731367,-648.08,0.0002775,8]
[329682370,1718568731392,-1042.32,0.0002775,8]
[329682371,1718568731538,-817.36,0.0002775,8]
[329682372,1718568731555,-603.17,0.0002775,8]
[329682373,1718568731571,-500.0,0.0002775,8]
[329682374,1718568731585,-579.26,0.0002775,8]
[329682375,1718568731608,-543.01,0.0002775,8]
[329682376,1718568731634,-614.84,0.0002775,8]
[329682377,1718568731646,-500.0,0.0002775,8]
[329682378,1718568731659,-3269.02,0.0002775,8]
[329682379,1718568731673,-1612.04,0.0002775,8]
[329682380,1718568731685,-1038.13,0.0002775,8]
[329682381,1718568731704,-2763.05,0.0002775,8]
[329682382,1718568731717,-500.0,0.0002775,8]
[329682383,1718568731731,-936.28,0.0002775,8]
[329682384,1718568731744,-529.06,0.0002775,8]
[329682385,1718568731756,-648.71,0.0002775,8]
[329682386,1718568731766,-960.71,0.0002775,8]
[329682387,1718568731792,-900.49,0.0002775,8]
[329682388,1718568731816,-637.17,0.0002775,8]
[329682389,1718568731835,-864.55,0.0002775,8]
[329682390,1718568731861,-656.91,0.0002775,8]
[329682391,1718568731877,-589.25,0.0002775,8]
[329682392,1718568731888,-536.83769318,0.00027751,5]
[329682393,1718568731900,-218.77398,0.00027751,7]
[329682394,1718568731925,-218.77398,0.00027751,7]
[329682395,1718568731937,-151.0,0.00027751,7]
[329682396,1718568731949,-151.0,0.00027751,7]
[329682397,1718568731963,-151.0,0.00027751,7]
[329682398,1718568731984,-151.0,0.00027751,7]
[329682399,1718568732004,-151.0,0.00027751,7]
[329682400,1718568732040,-151.0,0.00027751,7]
[329682401,1718568732054,-151.0,0.00027751,7]
[329682402,1718568732064,-151.0,0.00027751,7]
[329682403,1718568732076,-151.0,0.00027751,7]
[329682404,1718568732088,-151.0,0.00027751,7]
[329682405,1718568732100,-151.0,0.00027751,7]
[329682406,1718568732115,-249.676035,0.00027751,7]
[329682407,1718568732129,-151.0,0.00027751,7]
[329682408,1718568732140,-227.433991,0.00027751,7]
[329682409,1718568732192,-274.30054,0.00027751,7]
[329682410,1718568732212,-150.0,0.00027751,2]
[329682411,1718568732224,-151.0,0.00027751,7]
[329682412,1718568732238,-174.686912,0.00027751,7]
[329682413,1718568732253,-174.686912,0.00027751,7]
[329682414,1718568732265,-161.602954,0.00027751,7]
[329682415,1718568732278,-284.009097,0.00027751,7]
[329682416,1718568732289,-151.0,0.00027751,7]
[329682417,1718568732300,-151.0,0.00027751,7]
[329682418,1718568732312,-2595.2318366,0.00027751,2]
[329682419,1718568732327,-3081.4056219,0.00027751,2]
[329682420,1718568732344,-151.0,0.00027751,7]
[329682421,1718568732361,-3567.5794072,0.00027751,2]
[329682422,1718568732372,-174.095263,0.00027751,7]
[329682423,1718568732384,-4053.7531926,0.00027751,2]
[329682424,1718568732395,-4539.9269779,0.00027751,2]
[329682425,1718568732416,-151.0,0.00027751,7]
[329682426,1718568732435,-151.0,0.00027751,7]
[329682427,1718568732448,-151.0,0.00027751,7]
[329682428,1718568732466,-151.0,0.00027751,7]
[329682429,1718568732478,-151.0,0.00027751,7]
[329682430,1718568732489,-151.0,0.00027751,7]
[329682431,1718568732505,-151.0,0.00027751,7]
[329682432,1718568732518,-260.863939,0.00027751,7]
[329682433,1718568732532,-151.0,0.00027751,7]
[329682434,1718568732551,-151.0,0.00027751,7]
[329682435,1718568732569,-13912.314385,0.00027751,2]
[329682436,1718568732583,-16518.5565141,0.00027751,2]
[329682437,1718568732603,-19124.7986432,0.00027751,2]
[329682438,1718568732634,-21731.0407723,0.00027751,2]
[329682439,1718568732647,-24337.2829014,0.00027751,2]
[329682440,1718568732659,-151.0,0.00027751,7]
[329682441,1718568732673,-284.88,0.00027751,7]
[329682442,1718568732684,-151.0,0.00027751,7]
[329682443,1718568732698,-151.0,0.00027751,7]
[329682444,1718568732713,-257.146871,0.00027751,7]
[329682445,1718568732729,-151.0,0.00027751,7]
[329682446,1718568732748,-151.0,0.00027751,7]
[329682447,1718568732762,-1561.0324025,0.00027751,2]
[329682448,1718568732788,-1843.903513,0.00027751,2]
[329682449,1718568732819,-2126.7746234,0.00027751,2]
[329682450,1718568732841,-2409.6457339,0.00027751,2]
[329682451,1718568732854,-2692.5168443,0.00027751,2]
[329682452,1718568732865,-151.0,0.00027751,7]
[329682453,1718568732876,-151.0,0.00027751,7]
[329682454,1718568732889,-192.24932,0.00027751,7]
[329682455,1718568732904,-192.24932,0.00027751,7]
[329682456,1718568732923,-192.24932,0.00027751,7]
[329682457,1718568732937,-192.24932,0.00027751,7]
[329682458,1718568732950,-151.0,0.00027751,7]
[329682459,1718568732961,-151.0,0.00027751,7]
[329682460,1718568732977,-1193.964812,0.00027751,7]
[329682461,1718568732994,-4298.7714358,0.00027751,2]
[329682462,1718568733017,-151.0,0.00027751,7]
[329682463,1718568733029,-5077.7419732,0.00027751,2]
[329682464,1718568733044,-5856.7125106,0.00027751,2]
[329682465,1718568733055,-6635.6830481,0.00027751,2]
[329682466,1718568733069,-7414.6535855,0.00027751,2]
[329682467,1718568733080,-151.0,0.00027751,7]
[329682468,1718568733092,-1193.964812,0.00027751,7]
[329682469,1718568733104,-151.0,0.00027751,7]
[329682470,1718568733120,-151.0,0.00027751,7]
[329682471,1718568733130,-151.0,0.00027751,7]
[329682472,1718568733163,-397.979934,0.00027751,7]
[329682473,1718568733174,-397.979934,0.00027751,7]
[329682474,1718568733190,-151.0,0.00027751,7]
[329682475,1718568733208,-152.631401,0.00027751,7]
[329682476,1718568733221,-1406.223328,0.00027751,7]
[329682477,1718568733236,-1406.223328,0.00027751,7]
[329682478,1718568733252,-170.03137,0.00027751,7]
[329682479,1718568733263,-170.03137,0.00027751,7]
[329682480,1718568733275,-87360.2994239,0.00027751,2]
[329682481,1718568733286,-105020.8968886,0.00027751,2]
[329682482,1718568733308,-122681.4943533,0.00027751,2]
[329682483,1718568733319,-140342.0918181,0.00027751,2]
[329682484,1718568733336,-158002.6892828,0.00027751,2]
[329682485,1718568733360,-151.0,0.00027751,7]
[329682486,1718568733373,-151.0,0.00027751,7]
[329682487,1718568733393,-151.0,0.00027751,7]
[329682488,1718568733410,-151.0,0.00027751,7]
[329682489,1718568733426,-151.0,0.00027751,7]
[329682490,1718568733444,-1173.2260659,0.00027751,2]
[329682491,1718568733473,-1410.4032897,0.00027751,2]
[329682492,1718568733502,-1647.5805135,0.00027751,2]
[329682493,1718568733514,-1884.7577373,0.00027751,2]
[329682494,1718568733527,-2121.934961,0.00027751,2]
[329682495,1718568733544,-151.0,0.00027751,7]
[329682496,1718568733564,-166.467511,0.00027751,7]
[329682497,1718568733577,-166.467511,0.00027751,7]
[329682498,1718568733601,-150.0,0.00027753,2]
[329682499,1718568733614,-155.0,0.00027755,2]
[329682500,1718568733627,-797.27100674,0.00027755,2]
[329682501,1718568733641,-155.49037544,0.00027757,2]
[329682502,1718568733652,-2759.69271096,0.00027759,6]
[329682503,1718568733673,-192.18649808,0.0002776,2]
[329682504,1718568733684,-156.74317224,0.0002776,2]
[329682505,1718568733696,-155.0,0.0002776,2]
[329682506,1718568733707,-156.38728002,0.0002776,2]
[329682507,1718568733718,-304.95856914,0.0002776,2]
[329682508,1718568733730,-178.55067921,0.0002776,2]
[329682509,1718568733741,-170.69238991,0.0002776,2]
[329682510,1718568733752,-264.40460074,0.0002776,2]
[329682511,1718568733764,-539.72384667,0.0002776,2]
[329682512,1718568733785,-2593.48,0.00027761,15]
[329682513,1718568733806,-1240.14659888,0.00027761,15]
[329682514,1718568733845,-1099.79,0.00027761,8]
[329682515,1718568733857,-614.81,0.00027761,8]
[329682516,1718568733870,-391.91144955,0.00027762,2]
[329682517,1718568733882,-447.40192806,0.00027762,2]
[329682518,1718568733893,-151.0,0.00027763,7]
[329682519,1718568733904,-151.0,0.00027763,7]
[329682520,1718568733926,-154.177824,0.00027763,7]
[329682521,1718568733962,-365.303599,0.00027763,7]
[329682522,1718568733978,-365.303599,0.00027763,7]
[329682523,1718568733995,-2100.0,0.00027764,2]
[329682524,1718568734025,-164.399,0.00027764,2]
[329682525,1718568734042,-202.67309278,0.00027768,2]
[329682526,1718568734059,-999.99174,0.00027768,2]
[329682527,1718568734070,-400.0,0.00027768,2]
[329682528,1718568734105,-155.0,0.00027768,2]
[329682529,1718568734128,-182.28684625,0.00027768,2]
[329682530,1718568734163,-155.0,0.00027768,2]
[329682531,1718568734186,-5900.0,0.00027768,7]
[329682532,1718568734200,-1427.0560194,0.00027768,7]
[329682533,1718568734217,-248.92686412,0.00027768,2]
[329682534,1718568734233,-284.31777379,0.00027768,2]
[329682535,1718568734245,-156.37536616,0.00027768,2]
[329682536,1718568734270,-155.0,0.00027768,2]
[329682537,1718568734283,-157.66747481,0.00027768,2]
[329682538,1718568734296,-158.03447952,0.00027768,2]
[329682539,1718568734310,-155.0,0.00027768,2]
[329682540,1718568734324,-155.48983317,0.00027768,2]
[329682541,1718568734337,-173.25247491,0.00027768,2]
[329682542,1718568734355,-156.12777516,0.00027768,2]
[329682543,1718568734369,-155.0,0.00027768,2]
[329682544,1718568734392,-174.35592178,0.00027768,2]
[329682545,1718568734403,-235.77130805,0.00027768,2]
[329682546,1718568734429,-300.14317843,0.00027768,2]
[329682547,1718568734443,-210.70788545,0.00027768,2]
[329682548,1718568734455,-1236.28417491,0.00027768,2]
[329682549,1718568734469,-189.35448094,0.00027768,2]
[329682550,1718568734485,-201.12551533,0.00027768,2]
[329682551,1718568734505,-211.5608545,0.00027768,2]
[329682552,1718568734525,-155.45078624,0.00027768,2]
[329682553,1718568734542,-307.86532118,0.00027768,2]
[329682554,1718568734564,-160.8494906,0.00027768,2]
[329682555,1718568734584,-220.89856811,0.00027768,2]
[329682556,1718568734613,-263.58817744,0.00027768,2]
[329682557,1718568734632,-155.0,0.00027768,2]
[329682558,1718568734644,-157.44296407,0.00027768,2]
[329682559,1718568734658,-155.54684316,0.00027768,2]
[329682560,1718568734678,-156.69312687,0.00027768,2]
[329682561,1718568734691,-198.73415374,0.00027768,2]
[329682562,1718568734729,-156.51407858,0.00027768,2]
[329682563,1718568734760,-274.89751879,0.00027768,2]
[329682564,1718568734772,-283.07027386,0.00027768,2]
[329682565,1718568734786,-875.8,0.00027768,8]
[329682566,1718568734805,-500.0,0.00027768,2]
[329682567,1718568734833,-666.06,0.00027768,8]
[329682568,1718568734847,-1143.09,0.00027768,8]
[329682569,1718568734876,-709.52,0.00027768,8]
[329682570,1718568734909,-754.04,0.00027768,8]
[329682571,1718568734935,-648.08,0.00027768,8]
[329682572,1718568734967,-1042.32,0.00027768,8]
[329682573,1718568734981,-817.36,0.00027768,8]
[329682574,1718568734994,-603.17,0.00027768,8]
[329682575,1718568735011,-581.87,0.00027768,8]
[329682576,1718568735028,-504.0,0.00027768,8]
[329682577,1718568735050,-500.0,0.00027768,8]
[329682578,1718568735067,-579.26,0.00027768,8]
[329682579,1718568735092,-722.11,0.00027768,8]
[329682580,1718568735129,-614.84,0.00027768,8]
[329682581,1718568735145,-500.0,0.00027768,8]
[329682582,1718568735164,-3269.02,0.00027768,8]
[329682583,1718568735184,-500.0,0.00027768,8]
[329682584,1718568735197,-1612.04,0.00027768,8]
[329682585,1718568735222,-1038.13,0.00027768,8]
[329682586,1718568735235,-810.12,0.00027768,8]
[329682587,1718568735255,-500.0,0.00027768,8]
[329682588,1718568735279,-2763.05,0.00027768,8]
[329682589,1718568735301,-1047.89,0.00027768,8]
[329682590,1718568735314,-500.0,0.00027768,8]
[329682591,1718568735330,-936.28,0.00027768,8]
[329682592,1718568735348,-607.92,0.00027768,8]
[329682593,1718568735372,-529.06,0.00027768,8]
[329682594,1718568735390,-648.71,0.00027768,8]
[329682595,1718568735401,-1372.29,0.00027768,8]
[329682596,1718568735419,-960.71,0.00027768,8]
[329682597,1718568735448,-900.49,0.00027768,8]
[329682598,1718568735469,-637.17,0.00027768,8]
[329682599,1718568735488,-673.61,0.00027768,8]
[329682600,1718568735502,-883.94,0.00027768,8]
[329682601,1718568735518,-864.55,0.00027768,8]
[329682602,1718568735538,-656.91,0.00027768,8]
[329682603,1718568735559,-589.25,0.00027768,8]
[329682604,1718568735574,-151.0,0.00027769,7]
[329682605,1718568735605,-151.0,0.00027769,7]
[329682606,1718568735618,-151.0,0.00027769,7]
[329682607,1718568735647,-151.0,0.00027769,7]
[329682608,1718568735675,-151.0,0.00027769,7]
[329682609,1718568735696,-151.0,0.00027769,7]
[329682610,1718568735718,-151.0,0.00027769,7]
[329682611,1718568735742,-151.0,0.00027769,7]
[329682612,1718568735764,-151.0,0.00027769,7]
[329682613,1718568735818,-151.0,0.00027769,7]
[329682614,1718568735838,-215.0,0.00027769,2]
[329682615,1718568735851,-215.0,0.00027769,2]
[329682616,1718568735865,-151.0,0.00027769,7]
[329682617,1718568735877,-151.0,0.00027769,7]
[329682618,1718568735898,-151.0,0.00027769,7]
[329682619,1718568735924,-214.63143,0.00027769,7]
[329682620,1718568735936,-151.0,0.00027769,7]
[329682621,1718568735947,-151.0,0.00027769,7]
[329682622,1718568735961,-151.0,0.00027769,7]
[329682623,1718568735980,-500.0,0.00027769,2]
[329682624,1718568736024,-500.0,0.00027769,2]